bitfinex/quotes_ETHUSD_20220227
["timestamp","ask_amount","ask_price","bid_price","bid_amount"]
[1645921152758,0.818,2791.1,2790.9,0.00556265]
[1645921153758,0.818,2791.1,2789.8,0.1433]
[1645921153962,0.818,2791.1,2790.9,0.00556265]
[1645921154363,1.818,2791.1,2790.9,0.00556265]
[1645921154963,1.818,2791.1,2789.8,0.1433]
[1645921155164,1.818,2791.1,2790.9,0.00556265]
[1645921156167,0.818,2791.1,2789.8,0.1433]
[1645921156363,0.818,2791.1,2790.9,0.00556265]
[1645921157365,0.818,2791.1,2789.8,0.1433]
[1645921157638,0.818,2791.1,2790.9,0.00556265]
[1645921158639,0.818,2791.1,2789.8,0.1433]
[1645921158842,0.818,2791.1,2790.9,0.00556265]
[1645921159739,0.818,2791.1,2789.8,0.1433]
[1645921159939,0.818,2791.1,2790.9,0.00556265]
[1645921161042,0.818,2791.1,2791.0,9.00000001]
[1645921161463,1.818,2791.1,2791.0,9.00000001]
[1645921161964,0.818,2791.1,2791.0,9.00000001]
[1645921162167,1.818,2791.1,2791.0,9.00000001]
[1645921162363,1.99808108,2791.1,2791.0,9.00000001]
[1645921162763,1.99808108,2791.1,2791.0,8.47569059]
[1645921162963,1.99808108,2791.1,2791.0,4.053e-05]
[1645921162964,10.09338108,2791.1,2791.0,4.053e-05]
[1645921163184,11.0108,2790.9,2789.8,0.1433]
[1645921163365,6.477,2790.1,2788.8,0.00354037]
[1645921163564,11.477,2789.9,2788.8,0.00354037]
[1645921163766,7.245,2789.8,2788.8,0.00354037]
[1645921163966,7.477,2789.5,2788.8,0.00354037]
[1645921164168,1.518,2789.4,2788.3,3.50354037]
[1645921164368,1.41529,2789.4,2788.3,0.00354037]
[1645921164568,0.518,2789.4,2788.3,3.50354037]
[1645921164774,0.518,2789.4,2788.9,0.00556498]
[1645921165830,0.518,2789.4,2788.8,0.00354037]
[1645921165831,0.89711,2789.3,2788.8,0.00354037]
[1645921166031,0.89711,2789.3,2789.0,0.00524166]
[1645921166432,0.518,2789.2,2789.0,0.00524166]
[1645921167037,0.518,2789.2,2788.5,0.00354037]
[1645921167232,0.518,2789.2,2789.0,0.00524172]
[1645921168233,0.518,2789.2,2788.5,0.00354037]
[1645921168434,4.018,2789.2,2789.0,0.00524172]
[1645921168634,1.71523,2789.2,2789.0,0.00524172]
[1645921169287,0.818,2789.2,2789.0,0.00524172]
[1645921169487,0.818,2789.2,2788.7,7.532]
[1645921169689,0.818,2789.2,2789.0,0.00524172]
[1645921170487,0.818,2789.2,2788.7,7.1717]
[1645921170890,0.818,2789.2,2789.0,0.0052633]
[1645921171790,0.818,2789.2,2788.7,7.1717]
[1645921171989,0.818,2789.2,2789.0,0.0052633]
[1645921173019,0.818,2789.2,2788.7,7.1717]
[1645921173212,0.818,2789.2,2789.0,0.0052633]
[1645921174116,0.818,2789.2,2788.7,7.1717]
[1645921174317,0.818,2789.2,2789.0,0.00526758]
[1645921175318,0.818,2789.2,2788.7,7.1717]
[1645921175717,0.818,2789.2,2789.0,0.00526758]
[1645921176563,0.818,2789.2,2788.7,7.1717]
[1645921176764,0.818,2789.2,2789.0,0.00526758]
[1645921177771,0.818,2789.2,2788.7,7.1717]
[1645921177969,0.818,2789.2,2789.0,0.00532492]
[1645921178970,0.818,2789.2,2788.7,7.1717]
[1645921179171,0.818,2789.2,2789.0,0.00532492]
[1645921179369,0.518,2789.2,2789.0,0.00532492]
[1645921179571,0.6584,2789.5,2789.0,0.00532492]
[1645921179771,5.8902,2790.2,2789.0,0.00532492]
[1645921180024,2.0,2790.1,2789.0,0.00532492]
[1645921180216,2.0,2790.1,2789.1,0.3603]
[1645921180419,2.0,2790.1,2789.5,0.00532433]
[1645921181115,2.3,2790.1,2789.5,0.00532433]
[1645921181317,2.3,2790.1,2788.9,0.3603]
[1645921181518,0.518,2790.0,2788.8,10.06664037]
[1645921181714,0.518,2790.0,2789.7,0.00525988]
[1645921181915,1.518,2790.0,2789.7,0.00525988]
[1645921182520,2.41493,2790.0,2788.8,13.56664037]
[1645921182718,2.41493,2790.0,2788.8,10.06664037]
[1645921183019,1.41493,2790.0,2789.7,0.00525982]
[1645921183515,1.41493,2790.0,2789.7,0.00370328]
[1645921183762,1.41493,2790.0,2788.8,13.92694037]
[1645921183965,1.41493,2790.0,2788.8,10.42694037]
[1645921184366,1.41493,2790.0,2788.8,13.77694037]
[1645921184566,1.41493,2790.0,2788.8,13.68057122]
[1645921184766,1.41493,2790.0,2788.8,13.67956199]
[1645921186068,1.55633,2790.0,2788.8,13.67956199]
[1645921186770,0.6594,2790.0,2788.8,13.67956199]
[1645921186970,0.6594,2790.0,2788.8,10.17956199]
[1645921187171,0.6594,2790.0,2788.8,13.67956199]
[1645921187370,0.518,2790.0,2789.0,0.8968048]
[1645921187625,0.518,2790.0,2789.3,0.00526462]
[1645921188625,0.518,2790.0,2788.8,14.31926199]
[1645921188832,0.518,2790.0,2789.5,0.00537306]
[1645921189832,0.518,2790.0,2788.9,0.3603]
[1645921190033,3.49691,2790.1,2789.6,0.00537295]
[1645921190235,3.71491,2790.1,2789.6,0.00537295]
[1645921190436,0.1414,2790.0,2789.6,0.00537295]
[1645921190633,0.518,2789.9,2789.6,0.00537295]
[1645921190838,1.03841,2789.8,2789.6,0.00537295]
[1645921191034,1.03841,2789.8,2788.9,0.00361189]
[1645921191035,0.518,2789.7,2788.9,0.00361189]
[1645921191270,0.768,2789.7,2789.6,0.00537295]
[1645921192271,0.518,2789.7,2788.9,0.00361189]
[1645921192473,0.518,2789.7,2789.5,0.00525674]
[1645921193373,0.518,2789.7,2788.9,0.00361189]
[1645921193570,0.518,2789.7,2789.5,0.00525679]
[1645921194175,0.3,2789.8,2789.5,0.00525679]
[1645921194575,0.6,2789.9,2788.9,0.00361189]
[1645921194777,0.818,2790.0,2789.5,0.00525674]
[1645921195822,0.818,2790.0,2788.9,0.00361189]
[1645921196025,0.818,2790.0,2789.6,0.00526439]
[1645921197023,0.818,2790.0,2788.9,0.00361189]
[1645921197224,0.818,2790.0,2789.7,0.00526433]
[1645921198024,0.18008108,2790.1,2789.7,0.00526433]
[1645921198224,1.18008108,2790.5,2789.4,0.3603]
[1645921198425,1.0,2790.5,2789.7,0.00526428]
[1645921199468,1.3,2790.5,2789.3,3.8603]
[1645921199667,1.3,2790.5,2789.9,0.00526406]
[1645921199868,0.89683,2790.3,2789.9,0.00526406]
[1645921200566,0.89683,2790.3,2789.3,3.5]
[1645921200773,0.89683,2790.3,2789.2,1.1312]
[1645921200969,0.89683,2790.3,2789.9,0.00526353]
[1645921201174,1.19683,2790.3,2789.9,0.00526353]
[1645921201466,1.71483,2790.3,2789.9,0.00526353]
[1645921201867,1.71483,2790.3,2789.2,1.1312]
[1645921202068,1.71483,2790.3,2789.9,0.00526353]
[1645921202828,3.50881,2790.3,2789.9,0.00526353]
[1645921203024,1.89707,2790.0,2789.2,1.1312]
[1645921203224,0.76746855,2789.9,2789.2,1.1312]
[1645921203424,0.89713,2789.7,2789.2,1.1312]
[1645921203623,0.89713,2789.7,2789.1,2.89011189]
[1645921203624,0.518,2789.6,2789.1,2.89011189]
[1645921203831,0.518,2789.6,2789.1,2.8865]
[1645921203832,0.818,2789.6,2789.1,2.8865]
[1645921204227,0.89714,2789.4,2788.9,5.09721189]
[1645921204428,0.518,2789.3,2789.2,0.00526437]
[1645921205227,0.818,2789.3,2789.2,0.00526437]
[1645921205428,1.6573,2789.3,2788.9,0.00361189]
[1645921205629,1.6573,2789.3,2788.4,0.00361189]
[1645921205829,1.6573,2789.3,2789.1,0.00526448]
[1645921206272,2.6573,2789.3,2789.1,0.00526448]
[1645921206477,1.65586657,2789.3,2789.1,0.00526448]
[1645921206673,2.65586657,2789.3,2788.8,0.00361189]
[1645921206872,1.65586657,2789.3,2789.1,0.00526454]
[1645921207073,2.65586657,2789.3,2789.1,0.00526454]
[1645921207375,1.65586657,2789.3,2789.1,0.00526454]
[1645921207575,2.79726657,2789.3,2789.1,0.00526454]
[1645921207772,1.79726657,2789.3,2788.8,0.00361189]
[1645921207976,1.89721,2789.1,2788.4,0.00361189]
[1645921208173,0.518,2789.0,2788.4,0.00361189]
[1645921209379,0.518,2789.0,2788.7,7.17696497]
[1645921210221,0.518,2789.0,2788.7,7.1717]
[1645921210422,0.518,2789.0,2788.7,7.17696497]
[1645921211325,0.518,2789.0,2788.7,7.1717]
[1645921211529,0.89733,2788.8,2788.7,7.1717]
[1645921211725,1.41533,2788.8,2788.7,7.17696498]
[1645921212531,2.58623,2788.8,2788.7,7.1717]
[1645921212729,4.58623,2788.8,2788.7,7.1717]
[1645921213123,3.58623,2788.8,2788.7,7.1717]
[1645921213764,4.58623,2788.8,2788.7,7.1717]
[1645921215274,3.6889,2788.8,2788.7,7.1717]
[1645921215472,1.518,2788.8,2788.7,7.1717]
[1645921215769,0.518,2788.8,2788.7,7.1717]
[1645921219330,1.4153,2788.8,2788.7,7.1717]
[1645921220929,1.63612307,2788.8,2788.7,7.1717]
[1645921221981,8.96352307,2788.8,2788.7,1.78606]
[1645921222177,8.96352307,2788.8,2788.7,0.01244401]
[1645921222178,15.54118108,2788.8,2788.7,0.01244401]
[1645921222475,15.54118108,2788.8,2787.3,1.1722]
[1645921222476,1.79574,2788.4,2787.7,0.00361189]
[1645921222774,1.79574,2788.4,2787.1,0.02106671]
[1645921222775,6.777,2787.8,2787.4,0.00361189]
[1645921222974,0.518,2787.7,2787.1,0.02106671]
[1645921223176,0.25,2787.5,2787.1,0.02106671]
[1645921223375,2.5,2787.3,2786.7,0.0246786]
[1645921223577,0.89798,2787.1,2786.7,0.0246786]
[1645921223773,0.518,2787.0,2786.7,0.0246786]
[1645921224178,1.0,2787.4,2786.7,0.3849786]
[1645921224377,0.25,2787.5,2786.8,3.8603]
[1645921224582,0.25,2787.5,2786.7,0.0246786]
[1645921224583,0.55,2787.5,2786.7,0.0246786]
[1645921224780,0.818,2787.6,2786.8,0.3603]
[1645921225034,0.518,2787.6,2786.9,0.00326224]
[1645921225528,0.818,2787.6,2786.9,0.00326224]
[1645921225733,0.818,2787.6,2786.7,0.0246786]
[1645921226130,0.00557033,2787.4,2787.0,0.00557118]
[1645921226332,0.52357033,2787.4,2787.0,0.00557118]
[1645921226731,0.89779,2787.3,2787.0,0.00557118]
[1645921226929,0.518,2787.2,2787.0,0.00557118]
[1645921227133,0.518,2787.2,2786.7,0.0246786]
[1645921227334,0.518,2787.2,2787.0,0.00557114]
[1645921228235,0.518,2787.2,2786.7,0.0246786]
[1645921228629,0.518,2787.2,2787.0,0.00557106]
[1645921229482,0.518,2787.2,2786.7,0.0246786]
[1645921229686,0.518,2787.2,2787.0,0.00557106]
[1645921230685,0.518,2787.2,2786.7,0.0246786]
[1645921230885,0.518,2787.2,2787.0,0.00524807]
[1645921231887,0.518,2787.2,2786.7,0.0246786]
[1645921232086,0.518,2787.2,2787.0,0.00524807]
[1645921232725,0.00524728,2787.4,2787.0,0.00524807]
[1645921233228,0.9594,2787.5,2786.8,0.00359909]
[1645921233424,0.9594,2787.5,2786.7,0.3849786]
[1645921233425,0.00524728,2787.4,2787.0,0.00524807]
[1645921234231,0.818,2787.5,2786.8,0.00359909]
[1645921234434,0.00526891,2787.4,2787.0,0.00526971]
[1645921235535,0.818,2787.5,2786.8,0.00359909]
[1645921235734,0.818,2787.5,2787.0,0.00526971]
[1645921235735,0.00526891,2787.4,2787.0,0.00526971]
[1645921236685,0.518,2787.5,2786.8,0.00359909]
[1645921236887,0.518,2787.5,2787.0,0.00526971]
[1645921236888,0.00526891,2787.4,2787.0,0.00526971]
[1645921237291,0.30526891,2787.4,2787.0,0.00526971]
[1645921237492,0.518,2787.3,2787.0,0.00526971]
[1645921237685,3.5,2787.2,2787.0,0.00526971]
[1645921237892,0.518,2787.1,2786.7,0.0246786]
[1645921238086,3.5,2787.0,2786.7,0.0246786]
[1645921238285,0.518,2786.9,2786.7,0.0246786]
[1645921238486,0.518,2786.8,2786.7,0.0246786]
[1645921243630,4.018,2786.8,2786.7,0.0246786]
[1645921243884,0.518,2786.8,2786.7,0.0246786]
[1645921245485,0.518,2786.8,2786.7,0.02313275]
[1645921245885,0.518,2786.8,2786.6,0.00526871]
[1645921246385,0.518,2786.8,2786.3,0.00359909]
[1645921246588,0.518,2786.8,2786.6,0.00526876]
[1645921247526,0.518,2786.8,2786.2,0.00359909]
[1645921247729,0.518,2786.8,2786.6,0.00526876]
[1645921248730,0.518,2786.8,2786.2,0.00359909]
[1645921248933,0.518,2786.8,2786.6,0.00526877]
[1645921249939,5.33949393,2787.4,2786.2,0.00359909]
[1645921249940,1.0,2787.4,2786.4,0.4032]
[1645921250136,0.00526722,2787.4,2786.6,0.00526877]
[1645921250539,0.00526722,2787.4,2787.3,0.0224]
[1645921250736,0.00526722,2787.4,2786.8,0.3603]
[1645921251132,5.5,2788.2,2787.1,0.8974046]
[1645921251376,0.00526751,2787.4,2787.1,0.8974046]
[1645921251576,0.00526751,2787.4,2787.2,0.00359909]
[1645921251776,0.00526751,2787.4,2787.1,0.8974046]
[1645921252380,5.5,2788.2,2787.0,2.1550808]
[1645921252578,0.0052676,2787.4,2787.1,0.00359909]
[1645921252780,0.0052676,2787.4,2787.0,2.16034921]
[1645921252979,0.0052676,2787.4,2787.0,1.80004921]
[1645921253582,0.1414,2788.1,2787.0,1.7947808]
[1645921253780,0.00526758,2787.4,2787.1,0.00359909]
[1645921253981,0.00526758,2787.4,2787.0,1.80004918]
[1645921255929,0.1414,2788.1,2787.0,1.7947808]
[1645921256130,0.00526757,2787.4,2787.1,0.00359909]
[1645921256333,0.00526757,2787.4,2787.0,1.80004917]
[1645921257130,0.1414,2788.1,2787.0,1.7947808]
[1645921257332,0.00526757,2787.4,2787.1,0.00359909]
[1645921257532,0.00526757,2787.4,2787.0,1.80004917]
[1645921258336,0.1414,2788.1,2787.0,1.7947808]
[1645921258531,0.00526757,2787.4,2787.1,0.00359909]
[1645921258790,0.00526757,2787.4,2787.0,1.80004917]
[1645921259594,0.1414,2788.1,2787.3,0.8973958]
[1645921259794,0.00526757,2787.4,2787.3,0.8973958]
[1645921260795,0.25,2788.3,2787.3,0.8973958]
[1645921261100,0.25,2788.3,2787.4,0.00359909]
[1645921261101,0.00526748,2787.5,2787.4,0.00359909]
[1645921261295,0.00526748,2787.5,2787.3,0.8973958]
[1645921261494,0.00526748,2787.5,2787.4,1.0]
[1645921261895,0.25,2788.3,2787.3,0.8973958]
[1645921262095,0.25,2788.3,2787.4,0.00359909]
[1645921262297,0.00526736,2787.6,2787.1,1.88047089]
[1645921262531,0.00526736,2787.6,2787.2,1.5165718]
[1645921262934,0.00526736,2787.6,2787.0,0.00526855]
[1645921263135,0.518,2787.8,2787.1,1.51674381]
[1645921263332,0.00526741,2787.5,2787.2,0.00359909]
[1645921263531,0.00526741,2787.5,2787.0,0.0088676]
[1645921263736,0.00526741,2787.5,2787.1,1.51676466]
[1645921264236,0.518,2787.8,2787.1,1.51676466]
[1645921264439,0.518,2787.8,2787.0,0.00359909]
[1645921264640,0.00526753,2787.4,2787.0,1.52562808]
[1645921264839,0.00526753,2787.4,2787.1,1.51676055]
[1645921265238,0.518,2787.3,2787.0,0.00526844]
[1645921265639,0.518,2787.3,2786.6,0.02599909]
[1645921265839,0.518,2787.3,2787.0,0.0052684]
[1645921266680,0.518,2787.3,2786.6,0.02599909]
[1645921266905,0.518,2787.3,2787.0,0.00324925]
[1645921267882,0.518,2787.3,2786.8,0.00359909]
[1645921268181,0.518,2787.3,2787.0,0.00324925]
[1645921269185,0.518,2787.3,2786.8,0.00359909]
[1645921269388,0.518,2787.3,2787.0,0.00324925]
[1645921270330,0.518,2787.3,2786.6,0.02599909]
[1645921270533,0.518,2787.3,2787.0,0.00557495]
[1645921271533,0.518,2787.3,2786.6,0.02599909]
[1645921271731,0.518,2787.3,2786.7,1.51694215]
[1645921271930,0.518,2787.3,2787.0,0.00557495]
[1645921272733,0.518,2787.3,2786.8,0.00359909]
[1645921272930,0.518,2787.3,2787.0,0.00557495]
[1645921273989,0.518,2787.3,2786.8,0.00359909]
[1645921274185,0.0055741,2787.4,2787.0,0.00557495]
[1645921275186,0.518,2787.6,2786.8,0.00359909]
[1645921275487,0.00232826,2787.4,2786.6,0.02599909]
[1645921275687,0.00232826,2787.4,2786.7,1.51686376]
[1645921276288,0.518,2787.6,2786.7,1.51686376]
[1645921276493,0.00557023,2787.4,2786.9,0.00557118]
[1645921277088,0.00557023,2787.4,2787.0,1.51686365]
[1645921277531,0.518,2787.6,2787.0,1.51686365]
[1645921277729,0.00557036,2787.4,2787.0,0.0055712]
[1645921278729,0.518,2787.6,2786.7,0.00359909]
[1645921278933,0.00557036,2787.4,2787.0,0.0055712]
[1645921279334,0.52357036,2787.4,2787.0,0.0055712]
[1645921279935,0.518,2787.4,2786.8,0.00359909]
[1645921280136,0.52357036,2787.4,2787.0,0.0055712]
[1645921281137,0.00116103,2787.0,2786.8,0.00359909]
[1645921281391,0.00116103,2787.0,2786.6,1.25579909]
[1645921281392,0.51916103,2787.0,2786.6,1.25579909]
[1645921281589,0.51916103,2787.0,2786.6,0.0224]
[1645921282691,0.51916103,2787.0,2786.7,0.00546532]
[1645921283495,0.81916103,2787.0,2786.6,0.0224]
[1645921283896,0.81916103,2787.0,2786.7,0.00546526]
[1645921283897,0.96056103,2787.0,2786.7,0.00546526]
[1645921284095,1.96056103,2787.0,2786.7,0.00546526]
[1645921284695,0.1414,2786.9,2786.6,0.0224]
[1645921285034,0.518,2786.8,2786.7,0.00324591]
[1645921285225,1.7249,2786.8,2786.7,0.00324591]
[1645921285428,2.0249,2786.8,2786.7,0.00324591]
[1645921285826,2.0249,2786.8,2786.6,0.0224]
[1645921286229,2.0249,2786.8,2786.6,0.02667431]
[1645921286430,2.0249,2786.8,2786.6,0.02637145]
[1645921287128,2.0249,2786.8,2786.6,0.0208]
[1645921287327,2.0249,2786.8,2786.6,0.02637151]
[1645921288330,2.0249,2786.8,2786.6,0.0208]
[1645921288531,2.0249,2786.8,2786.6,0.02637151]
[1645921289584,2.0249,2786.8,2786.6,0.0208]
[1645921289781,2.0249,2786.8,2786.6,0.02637151]
[1645921289782,0.818,2786.8,2786.6,0.02637151]
[1645921290683,0.818,2786.8,2786.6,0.0208]
[1645921291085,0.818,2786.8,2786.6,0.02637151]
[1645921291887,0.818,2786.8,2786.6,0.0208]
[1645921292383,0.818,2786.8,2786.6,0.02637151]
[1645921293225,0.818,2786.8,2786.6,0.0208]
[1645921293424,0.818,2786.8,2786.6,0.02637151]
[1645921294434,0.818,2786.8,2786.6,0.0208]
[1645921294731,0.818,2786.8,2786.6,0.02637151]
[1645921295532,0.818,2786.8,2786.6,0.0208]
[1645921295735,0.818,2786.8,2786.6,0.02637151]
[1645921296133,0.668,2786.8,2786.6,0.02637151]
[1645921296880,0.668,2786.8,2786.6,0.0208]
[1645921297084,0.668,2786.8,2786.6,0.02637151]
[1645921297881,0.668,2786.8,2786.6,0.0208]
[1645921298282,0.668,2786.8,2786.6,0.02637151]
[1645921299187,0.668,2786.8,2786.6,0.0208]
[1645921299386,0.668,2786.8,2786.6,0.02637151]
[1645921300426,0.668,2786.8,2786.6,0.0208]
[1645921300634,0.668,2786.8,2786.6,0.00557151]
[1645921301629,0.668,2786.8,2786.0,0.00359909]
[1645921301829,3.5,2786.7,2786.6,0.00557151]
[1645921302031,4.318,2786.7,2786.6,0.00557151]
[1645921302234,5.318,2786.7,2786.6,0.00557151]
[1645921302428,6.318,2786.7,2786.6,0.00557151]
[1645921302930,6.318,2786.7,2786.5,0.02324622]
[1645921303130,3.5,2786.6,2786.5,0.02324622]
[1645921303329,5.018,2786.6,2786.5,0.02324622]
[1645921304010,5.018,2786.6,2786.5,0.02]
[1645921304209,11.28314444,2786.6,2786.5,0.02]
[1645921304410,14.28891404,2786.6,2786.5,0.02]
[1645921305611,11.27474442,2786.6,2786.5,0.02]
[1645921305810,8.26897482,2786.6,2786.5,0.02]
[1645921306811,4.76897482,2786.6,2786.5,0.02]
[1645921307419,2.518,2786.6,2786.5,0.02]
[1645921307639,0.518,2786.6,2786.5,0.02]
[1645921308040,0.70814645,2786.6,2786.5,0.02]
[1645921308238,0.518,2786.6,2786.5,0.02]
[1645921309142,1.518,2786.6,2786.5,0.02]
[1645921311049,4.018,2786.6,2786.5,0.02]
[1645921311288,6.018,2786.6,2786.5,0.02]
[1645921311789,0.89805,2786.5,2786.4,0.00557478]
[1645921311987,1.41605,2786.5,2786.4,0.00557478]
[1645921312397,1.41605,2786.5,2785.7,0.00359909]
[1645921312596,1.41605,2786.5,2786.3,0.0055749]
[1645921312790,1.66605,2786.5,2786.3,0.0055749]
[1645921312988,1.0,2786.4,2786.3,0.0055749]
[1645921313188,1.518,2786.4,2786.3,0.0055749]
[1645921313391,1.818,2786.4,2786.3,0.0055749]
[1645921313594,1.818,2786.4,2785.7,0.00359909]
[1645921313898,1.818,2786.4,2786.2,0.00538686]
[1645921314095,1.818,2786.4,2786.2,0.00118186]
[1645921314798,1.818,2786.4,2785.7,0.00359909]
[1645921315051,1.818,2786.4,2785.6,1.51751471]
[1645921315245,1.818,2786.4,2785.6,1.5211138]
[1645921316343,1.768,2786.4,2785.6,1.5211138]
[1645921317142,1.768,2786.4,2785.6,0.00359909]
[1645921317443,1.768,2786.4,2785.9,0.00557542]
[1645921318443,1.768,2786.4,2785.6,0.00359909]
[1645921318643,1.768,2786.4,2786.0,0.00557525]
[1645921319689,1.768,2786.4,2785.6,0.00359909]
[1645921319888,1.768,2786.4,2786.1,0.00557519]
[1645921320888,1.768,2786.4,2785.6,0.00359909]
[1645921321090,5.268,2786.4,2786.1,0.00557523]
[1645921321290,2.768,2786.4,2786.1,0.00557523]
[1645921321490,2.768,2786.4,2785.5,4.7616782]
[1645921322090,1.768,2786.4,2785.5,4.7616782]
[1645921322291,2.768,2786.4,2785.5,4.7616782]
[1645921322525,1.768,2786.4,2785.5,4.7616782]
[1645921322728,2.768,2786.4,2785.5,4.7616782]
[1645921322930,1.768,2786.4,2785.5,4.7616782]
[1645921323132,0.20044567,2786.3,2785.5,4.7616782]
[1645921323330,1.41615,2786.2,2785.5,4.7616782]
[1645921323526,1.41615,2786.2,2785.4,1.36589997]
[1645921323932,0.518,2786.2,2785.4,1.36589997]
[1645921325736,0.518,2786.2,2785.4,1.36685997]
[1645921325938,0.518,2786.2,2785.6,0.00557379]
[1645921325939,0.00557303,2785.9,2785.6,0.00557379]
[1645921326780,0.518,2786.2,2785.4,1.36685997]
[1645921326980,0.00557309,2785.9,2785.6,0.00557375]
[1645921327981,4.018,2786.2,2785.4,1.22866]
[1645921327982,0.518,2785.8,2785.4,1.22866]
[1645921328181,0.518,2785.8,2785.6,0.00557375]
[1645921328587,3.5,2785.7,2785.6,0.00557375]
[1645921328786,11.5154,2785.7,2785.6,0.00557375]
[1645921328987,17.87787124,2785.7,2785.6,0.00557375]
[1645921329185,0.00085153,2785.5,2785.1,0.00096]
[1645921329386,0.00085153,2785.5,2784.9,1.02230057]
[1645921329387,6.477,2785.2,2784.9,1.0]
[1645921329588,9.477,2785.0,2784.9,1.0]
[1645921329786,12.1711,2785.0,2784.9,1.0]
[1645921330053,15.5297,2785.0,2784.9,1.0]
[1645921330246,15.70978108,2785.0,2783.8,0.00096]
[1645921330437,12.477,2784.9,2783.8,0.00096]
[1645921330637,6.477,2784.7,2783.8,0.00096]
[1645921330839,6.477,2784.7,2783.4,0.02]
[1645921330840,4.018,2784.6,2784.4,0.01213489]
[1645921331042,1.0,2784.5,2784.4,0.01213489]
[1645921331238,6.05821,2784.5,2784.4,0.01213489]
[1645921331442,2.55821,2784.5,2784.4,0.01213489]
[1645921331640,7.05821,2784.5,2783.4,0.02096]
[1645921331839,0.1414,2784.4,2784.3,0.00303381]
[1645921332039,1.5473,2784.4,2784.3,0.00303381]
[1645921332342,5.80481,2784.4,2784.3,0.00303381]
[1645921332740,6.80481,2784.4,2784.3,0.00303381]
[1645921333038,7.96062,2784.4,2784.2,0.00303392]
[1645921333245,8.26062,2784.4,2784.2,0.00303392]
[1645921333888,11.05591108,2784.3,2784.2,0.00303392]
[1645921334088,9.07391108,2784.3,2783.0,0.00096]
[1645921334287,8.27494,2784.1,2783.7,0.0212674]
[1645921334488,0.518,2784.0,2783.7,0.0212674]
[1645921334687,1.0,2783.9,2783.7,0.0212674]
[1645921334888,0.518,2783.8,2783.7,0.0212674]
[1645921335288,0.518,2783.8,2782.8,0.00096]
[1645921335490,0.518,2783.8,2783.6,0.00531664]
[1645921336490,0.518,2783.8,2782.8,0.00096]
[1645921336692,0.518,2783.8,2783.6,0.00531669]
[1645921336693,1.41692,2783.8,2783.6,0.00531669]
[1645921337735,1.41692,2783.8,2782.8,0.00096]
[1645921337933,1.41692,2783.8,2783.6,0.00524122]
[1645921338136,3.5,2783.7,2783.6,0.00524122]
[1645921338337,6.5743,2783.7,2783.6,0.00524122]
[1645921338535,17.2570696,2783.7,2783.6,0.00524122]
[1645921338740,14.7570696,2783.7,2783.6,0.00524122]
[1645921338939,14.7570696,2783.7,2782.6,0.09456]
[1645921338940,0.21607925,2783.6,2782.6,0.09456]
[1645921339140,0.89903,2783.4,2783.1,0.02096824]
[1645921339339,0.518,2783.3,2783.1,0.02096824]
[1645921340141,0.518,2783.3,2782.6,0.09456]
[1645921340343,0.518,2783.3,2782.6,0.04456]
[1645921341481,0.518,2783.3,2782.8,0.00525346]
[1645921342482,0.518,2783.3,2782.6,0.04552]
[1645921342682,0.518,2783.3,2782.9,0.00525335]
[1645921343082,1.04392432,2783.3,2782.9,0.00525335]
[1645921343685,1.04392432,2783.3,2782.6,0.04552]
[1645921343892,0.89912,2783.1,2783.0,0.0052533]
[1645921344090,1.3,2783.4,2783.0,0.0052533]
[1645921344293,1.0,2783.4,2783.0,0.0052533]
[1645921344488,0.3,2783.5,2783.0,0.0052533]
[1645921344690,0.518,2783.5,2783.0,0.0052533]
[1645921344889,0.518,2783.5,2782.6,0.04456]
[1645921345130,0.518,2783.5,2783.1,0.00524481]
[1645921346033,0.518,2783.5,2782.5,0.02]
[1645921346231,3.5,2783.4,2782.5,0.02]
[1645921346435,0.518,2783.3,2783.2,0.00524476]
[1645921346631,1.518,2783.3,2783.2,0.00524476]
[1645921347034,4.018,2783.3,2783.2,0.00524476]
[1645921347232,4.018,2783.3,2782.4,0.00096]
[1645921347233,1.0,2783.2,2782.4,0.00096]
[1645921347433,4.018,2783.1,2782.4,0.00096]
[1645921347632,4.018,2783.1,2782.7,0.02098238]
[1645921347931,1.518,2783.1,2782.7,0.02098238]
[1645921348331,0.518,2783.1,2782.7,0.02098238]
[1645921348532,0.518,2783.1,2782.4,0.00096]
[1645921348784,0.518,2783.1,2782.8,0.00522815]
[1645921349686,0.518,2783.1,2782.4,0.00096]
[1645921349887,0.518,2783.1,2782.8,0.0052281]
[1645921350889,0.518,2783.1,2782.1,0.00096]
[1645921351088,0.518,2783.1,2782.8,0.0052281]
[1645921351689,0.89916,2783.0,2782.8,0.0052281]
[1645921351887,0.518,2782.9,2782.8,0.0052281]
[1645921352088,0.518,2782.9,2782.1,0.00096]
[1645921352290,0.518,2782.9,2782.8,0.00522982]
[1645921353331,0.518,2782.9,2782.1,0.00096]
[1645921354040,0.1436,2783.1,2782.1,0.00096]
[1645921354837,5.9812,2783.4,2782.2,1.2592821]
[1645921354838,1.1657,2783.4,2782.2,1.2592821]
[1645921355039,2.0,2783.8,2782.5,0.3603]
[1645921355337,5.83444455,2784.1,2782.7,0.3603]
[1645921355338,3.01214455,2784.1,2782.7,0.3603]
[1645921355537,3.01214455,2784.1,2783.3,0.02]
[1645921355939,3.01214455,2784.1,2783.2,0.00096]
[1645921355940,0.518,2784.1,2783.2,0.00096]
[1645921356141,3.6436,2784.0,2783.0,0.00555172]
[1645921356383,1.51623567,2783.8,2783.0,0.00555172]
[1645921356588,0.6616,2783.7,2783.0,0.00555172]
[1645921356784,0.6616,2783.7,2782.9,0.00096]
[1645921357085,0.6616,2783.7,2783.3,0.00555144]
[1645921357283,0.9616,2783.7,2783.3,0.00555144]
[1645921358082,0.9616,2783.7,2782.9,0.00096]